bitfinex-derivatives/quotes_SOLF0:USTF0_20250903
["timestamp","ask_amount","ask_price","bid_price","bid_amount"]
[1756879346281,7.25,209.13,208.99,7.89]
[1756879352186,7.25,209.13,209.0,7.89]
[1756879356787,7.25,209.13,209.04,7.89]
[1756879359386,7.25,209.13,209.05,1.61113918]
[1756879359585,1.61113918,209.12,209.05,1.61113918]
[1756879361391,7.25,209.13,209.07,1.61113918]
[1756879366498,7.25,209.13,209.06,1.61113918]
[1756879367697,7.25,209.13,209.08,9.34113918]
[1756879369499,7.25,209.13,209.09,7.73]
[1756879369900,7.82,209.14,208.97,3.99977441]
[1756879370202,7.82,209.07,209.0,1.61113918]
[1756879371509,7.82,209.07,208.99,7.73]
[1756879373113,7.82,209.07,208.95,302.45]
[1756879373509,5.30660941,209.08,208.95,302.45]
[1756879373913,7.82,209.07,208.95,302.45]
[1756879375015,7.82,209.07,208.95,7.73]
[1756879375218,7.82,209.06,208.95,7.73]
[1756879377408,13.12660941,209.06,208.95,7.73]
[1756879377608,7.82,209.06,208.95,7.73]
[1756879378217,13.12660941,209.06,208.95,7.73]
[1756879380421,7.82,209.06,208.95,7.73]
[1756879382518,5.30660941,209.05,208.95,7.73]
[1756879382717,13.12660941,209.06,208.98,0.03478549]
[1756879383020,7.82,209.02,208.98,0.03478549]
[1756879383221,0.03239903,209.03,208.98,0.03478549]
[1756879383426,7.82,209.02,208.98,0.03478549]
[1756879383622,0.03239903,209.03,208.98,0.03478549]
[1756879384621,7.82,209.02,208.98,0.03478549]
[1756879385623,7.82,209.02,208.98,7.76478549]
[1756879386024,0.03239903,209.03,208.99,7.73]
[1756879386420,7.85239903,209.03,208.99,7.73]
[1756879387222,0.03239903,209.03,208.98,0.03478549]
[1756879387728,7.82,209.02,208.98,0.03478549]
[1756879387923,0.03239903,209.03,208.98,0.03478549]
[1756879388318,7.82,209.02,208.98,0.03478549]
[1756879388625,5.33900844,209.03,208.98,0.03478549]
[1756879389123,0.03239903,209.03,208.98,0.03478549]
[1756879389331,7.82,209.02,208.98,0.03478549]
[1756879390328,0.03239903,209.03,208.98,0.03478549]
[1756879391028,7.82,209.02,208.98,0.03478549]
[1756879391220,0.03239903,209.03,208.98,0.03478549]
[1756879391425,7.63,209.02,208.98,0.03478549]
[1756879391921,0.03239903,209.03,208.98,0.03478549]
[1756879392823,7.63,209.02,208.98,0.03478549]
[1756879393620,0.03239903,209.03,208.98,0.03478549]
[1756879394530,7.63,209.02,208.98,0.03478549]
[1756879394724,0.03239903,209.03,208.98,0.03478549]
[1756879394928,7.63,209.02,208.98,0.03478549]
[1756879395630,0.03239903,209.03,208.98,0.03478549]
[1756879395828,7.63,209.02,208.98,0.03478549]
[1756879396029,0.03239903,209.03,208.98,0.03478549]
[1756879396628,7.63,209.02,208.98,0.03478549]
[1756879396833,0.03239903,209.03,208.98,0.03478549]
[1756879397033,7.63,209.02,208.98,0.03478549]
[1756879397734,0.03239903,209.03,208.98,0.03478549]
[1756879398131,10.15000037,209.02,208.98,0.03478549]
[1756879398330,7.63,209.01,208.98,0.03478549]
[1756879398731,2.52000037,209.02,208.98,0.03478549]
[1756879398933,7.82660978,209.02,208.98,0.03478549]
[1756879399235,2.52000037,209.02,208.98,0.03478549]
[1756879399432,7.63,209.01,208.98,0.03478549]
[1756879399732,2.52000037,209.02,208.98,0.03478549]
[1756879399934,7.63,209.01,208.98,0.03478549]
[1756879400727,10.15000037,209.01,208.98,0.03478549]
[1756879401736,15.45660978,209.01,208.98,0.03478549]
[1756879402132,10.15000037,209.01,208.98,0.03478549]
[1756879402433,15.45660978,209.01,208.98,0.03478549]
[1756879403632,7.63,209.0,208.98,0.03478549]
[1756879403828,7.82660978,209.01,208.98,0.03478549]
[1756879404137,7.63,209.0,208.98,0.03478549]
[1756879404533,7.82660978,209.01,208.98,0.03478549]
[1756879405339,7.63,209.0,208.98,0.03478549]
[1756879405734,7.82660978,209.01,208.98,0.03478549]
[1756879405936,7.63,209.0,208.98,0.03478549]
[1756879406533,0.48,208.99,208.85,0.83308397]
[1756879406738,10.15000037,208.98,208.86,7.65]
[1756879407643,2.52000037,208.95,208.86,7.65]
[1756879407841,7.66311791,208.94,208.86,7.65]
[1756879410747,7.66311791,208.94,208.82,7.65]
[1756879410946,10.18311828,208.94,208.82,7.65]
[1756879411147,10.15000037,208.94,208.82,7.65]
[1756879411338,0.03532115,208.9,208.82,7.65]
[1756879423657,7.27,208.89,208.82,7.65]
[1756879429964,7.27,208.86,208.82,7.65]
[1756879430257,7.27,208.86,208.76,7.27]
[1756879430454,0.03532115,208.9,208.78,7.27]
[1756879430659,2.52000037,208.9,208.78,7.27]
[1756879430860,0.03212708,208.86,208.78,7.27]
[1756879432056,2.52000037,208.84,208.78,7.27]
[1756879432260,7.27,208.83,208.72,7.27]
[1756879432859,0.0366309,208.8,208.72,7.27]
[1756879438864,0.0366309,208.8,208.75,7.27]
[1756879439062,0.0366309,208.8,208.75,7.75]
[1756879439258,0.0366309,208.8,208.75,7.27]
[1756879439566,0.0366309,208.8,208.77,7.27]
[1756879440263,0.0366309,208.8,208.76,129.76]
[1756879440467,0.0366309,208.8,208.77,7.27]
[1756879440667,0.0366309,208.8,208.74,129.68]
[1756879441065,0.0366309,208.8,208.75,7.27]
[1756879441267,0.0366309,208.8,208.73,7.27]
[1756879441665,7.3066309,208.8,208.73,7.27]
[1756879444065,0.0366309,208.8,208.73,7.27]
[1756879444869,7.27,208.79,208.73,7.27]
[1756879445567,1.61606173,208.78,208.71,295.75372264]
[1756879445772,1.61606173,208.78,208.72,7.27]
[1756879446172,1.61606173,208.78,208.72,8.88606173]
[1756879447174,7.27,208.79,208.72,8.88606173]
[1756879448068,1.61606173,208.78,208.72,7.27]
[1756879448273,7.27,208.76,208.68,7.27]
[1756879448473,8.88606173,208.76,208.7,7.27]
[1756879448866,0.03022483,208.75,208.7,7.27]
[1756879449273,0.03022483,208.75,208.69,1.61606173]
[1756879449573,0.03022483,208.75,208.7,7.27]
[1756879449878,0.03022483,208.75,208.69,1.61606173]
[1756879450076,0.03022483,208.75,208.7,7.27]
[1756879450273,0.03022483,208.75,208.69,1.61606173]
[1756879451071,0.03022483,208.75,208.7,7.27]
[1756879451271,0.03022483,208.75,208.69,1.61606173]
[1756879451772,0.03022483,208.75,208.69,7.27]
[1756879455683,0.03022483,208.75,208.69,8.88606173]
[1756879455881,0.03022483,208.75,208.69,7.27]
[1756879457080,0.03022483,208.75,208.68,1.61606173]
[1756879457286,7.9,208.74,208.67,1.61606173]
[1756879458191,7.9,208.74,208.68,7.27]
[1756879458390,0.03022483,208.75,208.69,1.61606173]
[1756879458791,0.03022483,208.75,208.7,7.27]
[1756879458987,0.03022483,208.75,208.66,7.27]
[1756879459183,0.03022483,208.75,208.69,1.61606173]
[1756879459384,0.03022483,208.75,208.7,7.27]
[1756879459985,0.03022483,208.75,208.72,7.27]
[1756879460193,0.03022483,208.75,208.71,1.61606173]
[1756879460494,0.03022483,208.75,208.72,7.27]
[1756879460693,0.03022483,208.75,208.71,1.61606173]
[1756879461193,0.03022483,208.75,208.72,7.27]
[1756879461392,0.03022483,208.75,208.65,0.83389246]
[1756879461595,0.03022483,208.75,208.72,7.27]
[1756879461795,0.03022483,208.75,208.65,0.83389246]
[1756879461990,0.03022483,208.75,208.7,7.27]
[1756879462599,0.03022483,208.75,208.72,7.27]
[1756879462991,7.93022483,208.75,208.72,7.27]
[1756879463195,0.03022483,208.75,208.68,1.61606173]
[1756879463399,0.03022483,208.75,208.69,7.27]
[1756879464401,9.51606173,208.74,208.66,7.27]
[1756879464597,9.51606173,208.74,208.66,8.88606173]
[1756879464796,9.51606173,208.74,208.67,1.61606173]
[1756879465091,9.51606173,208.74,208.66,8.88606173]
[1756879467598,7.9,208.74,208.69,7.27]
[1756879468399,7.93443185,208.74,208.68,8.88606173]
[1756879469901,7.93443185,208.74,208.68,7.27]
[1756879470100,0.03443185,208.74,208.69,8.88606173]
[1756879470302,7.9,208.73,208.69,8.88606173]
[1756879470601,7.9,208.73,208.67,1.61606173]
[1756879471196,0.03271168,208.72,208.67,1.61606173]
[1756879471399,7.9,208.71,208.67,7.27]
[1756879474306,0.03271168,208.72,208.69,7.27]
[1756879474502,0.03271168,208.72,208.62,128.21406234]
[1756879474704,8.38,208.71,208.5,7.27]
[1756879475007,7.9,208.71,208.51,7.27]
[1756879475304,14.36,208.76,208.51,7.27]
[1756879475305,3.77445778,208.7,208.51,16.95]
[1756879475501,0.03180228,208.63,208.55,7.27]
[1756879475707,7.34188949,208.62,208.55,8.05606173]
[1756879475908,7.34188949,208.61,208.55,8.05606173]
[1756879476210,9.51606173,208.64,208.56,1.61606173]
[1756879476413,0.035131,208.6,208.56,1.61606173]
[1756879476601,0.035131,208.6,208.57,1.61606173]
[1756879476910,0.035131,208.6,208.58,1.61606173]
[1756879477305,3.77216813,208.59,208.43,14.35]
[1756879477601,3.77216813,208.58,208.57,1.61606173]
[1756879477806,3.77216813,208.6,208.53,132.34]
[1756879478010,7.62441538,208.59,208.57,8.88606173]
[1756879478208,0.03635369,208.6,208.57,7.27]
[1756879478405,7.50963042,208.59,208.58,7.27]
[1756879478702,7.50963042,208.59,208.57,1.61606173]
[1756879478902,3.65877496,208.58,208.57,1.61606173]
[1756879479209,3.65877496,208.58,208.56,8.88606173]
[1756879479503,3.65877496,208.57,208.56,8.88606173]
[1756879480305,0.03635369,208.6,208.57,7.27]
[1756879480504,7.9,208.69,208.6,7.27]
[1756879480704,3.84996422,208.68,208.64,8.88606173]
[1756879480906,3.84996422,208.67,208.64,8.88606173]
[1756879481106,3.84996422,208.66,208.58,71.5]
[1756879481300,3.84996422,208.66,208.56,98.47]
[1756879481301,7.9,208.65,208.56,98.47]
[1756879481504,7.22,208.63,208.59,9.16606173]
[1756879481699,3.84996422,208.62,208.61,9.16606173]
[1756879482300,7.22,208.67,208.61,1.61606173]
[1756879482508,3.8498796,208.66,208.63,1.61606173]
[1756879482812,3.8498796,208.65,208.57,7.55]
[1756879483007,3.8498796,208.64,208.57,7.55]
[1756879483309,3.85079673,208.63,208.57,7.55]
[1756879483505,7.22,208.66,208.57,96.11]
[1756879483713,3.85000287,208.65,208.57,96.11]
[1756879484010,3.85000287,208.64,208.62,7.55]
[1756879484206,7.22,208.66,208.62,7.55]
[1756879484506,3.85129885,208.65,208.59,7.55]
[1756879484705,3.85129885,208.64,208.59,7.55]
[1756879484913,3.85101929,208.63,208.55,140.81]
[1756879485207,11.07101929,208.62,208.6,1.61606173]
[1756879485411,7.22,208.67,208.6,1.61606173]
[1756879485611,3.8505558,208.66,208.6,1.61606173]
[1756879485910,7.22,208.64,208.6,1.61606173]
[1756879486111,3.8505558,208.63,208.6,1.61606173]
[1756879486307,3.8505558,208.63,208.62,1.61606173]
[1756879486509,7.22,208.62,208.54,7.55]
[1756879486703,3.85137652,208.61,208.55,1.61606173]
[1756879486909,3.85137652,208.6,208.59,1.61606173]
[1756879487104,3.85137652,208.6,208.59,9.16606173]
[1756879487310,7.22,208.77,208.59,9.16606173]
[1756879487508,7.22,208.75,208.66,1.61606173]
[1756879487713,7.22,208.72,208.66,1.61606173]
[1756879488015,7.22,208.7,208.66,1.61606173]
[1756879488312,3.85063079,208.69,208.66,1.61606173]
[1756879488510,7.22,208.67,208.66,1.61606173]
[1756879488815,11.07063079,208.67,208.66,1.61606173]
[1756879489408,7.22,208.67,208.66,1.61606173]
[1756879489611,11.07231623,208.67,208.66,1.61606173]
[1756879490215,3.85231623,208.67,208.66,1.61606173]
[1756879491511,11.07231623,208.67,208.62,1.61606173]
[1756879491815,1.61606173,208.7,208.62,1.61606173]
[1756879491816,7.22,208.65,208.62,1.61606173]
[1756879492012,3.85231623,208.64,208.62,1.61606173]
[1756879492205,4.19528541,208.63,208.5,0.83452237]
[1756879492405,8.04760164,208.62,208.61,1.61606173]
[1756879492913,7.22,208.68,208.61,9.16606173]
[1756879493110,7.22,208.72,208.66,1.61606173]
[1756879494015,7.22,208.72,208.57,7.55]
[1756879494220,7.22,208.64,208.57,1.61606173]
[1756879494714,7.22,208.66,208.59,1.61606173]
[1756879495417,7.22,208.68,208.58,7.55]
[1756879495613,7.22,208.68,208.61,1.61606173]
[1756879496118,8.83606173,208.68,208.61,1.61606173]
[1756879496818,7.22,208.68,208.6,1.61606173]
[1756879497019,8.83606173,208.68,208.6,1.61606173]
[1756879497613,7.22,208.68,208.6,1.61606173]
[1756879497918,8.83606173,208.68,208.6,1.61606173]
[1756879498421,7.22,208.65,208.59,1.61606173]
[1756879499322,7.22,208.65,208.55,19.2]
[1756879499818,1.61606173,208.58,208.5,0.83452237]
[1756879500023,7.22,208.51,208.38,7.55]
[1756879500218,7.22,208.51,208.43,1.61606173]
[1756879500414,67.1528,208.46,208.43,6.173e-05]
[1756879500618,67.1665,208.42,208.27,4.01102551]
[1756879500824,67.1789,208.38,208.33,1.61606173]
[1756879501023,4.3195,208.34,208.2,65.05102551]
[1756879501219,4.3195,208.34,208.2,61.04]
[1756879501418,4.3195,208.34,208.25,1.61606173]
[1756879501620,4.3195,208.34,208.19,4.3224]
[1756879501817,5.93556173,208.34,208.24,1.61606173]
[1756879502119,1.61606173,208.39,208.2,71.72522551]
[1756879502319,7.22,208.48,208.36,1.61606173]
[1756879502524,4.3171,208.45,208.31,142.6]
[1756879502725,7.22,208.44,208.36,1.61606173]
[1756879502918,7.22,208.44,208.35,0.59]
[1756879503114,4.3178,208.42,208.35,0.59]
[1756879503422,67.1656,208.42,208.35,1.61606173]
[1756879503619,67.1656,208.42,208.33,2.45129514]
[1756879503620,67.1762,208.39,208.33,2.45129514]
[1756879503923,7.22,208.4,208.31,0.59]
[1756879504118,7.22,208.4,208.35,1.61606173]
[1756879504314,67.1656,208.42,208.3,0.59]
[1756879504522,67.1656,208.42,208.36,1.61606173]
[1756879504920,3.97119871,208.41,208.36,1.61606173]
[1756879505120,3.97119871,208.4,208.33,0.59]
[1756879505313,3.97119871,208.39,208.35,1.61606173]
[1756879505623,3.97119871,208.38,208.33,2.5337286]
[1756879505824,74.3856,208.42,208.34,0.59]
[1756879506020,3.97033261,208.41,208.34,0.59]
[1756879506220,74.3856,208.42,208.34,0.59]
[1756879506221,3.97033261,208.4,208.34,0.59]
[1756879506418,3.97033261,208.39,208.34,0.59]
[1756879506622,7.22,208.42,208.34,0.59]
[1756879506816,3.96870522,208.41,208.34,0.59]
[1756879507023,3.96870522,208.4,208.34,0.59]
[1756879507225,3.96870522,208.39,208.34,0.59]
[1756879507419,7.22,208.59,208.37,0.59]
[1756879507625,7.22,208.54,208.41,2.5337286]
[1756879507826,7.22,208.52,208.41,2.5337286]
[1756879508123,3.96766837,208.51,208.44,2.5337286]
[1756879508319,3.96766837,208.51,208.34,2.5337286]
[1756879508320,3.96766837,208.5,208.47,2.5337286]
[1756879508526,7.22,208.56,208.47,3.1237286]
[1756879509221,7.22,208.56,208.5,2.5337286]
[1756879509422,7.22,208.56,208.47,0.59]
[1756879510621,0.48,208.55,208.3,0.59]
[1756879510828,6.83389324,208.59,208.37,6.83389324]
[1756879511022,153.52,208.58,208.37,6.83389324]
[1756879511329,153.52,208.58,208.36,0.59]
[1756879511922,6.83389324,208.54,208.36,0.59]
[1756879512131,7.95,208.53,208.36,0.59]
[1756879513624,67.157,208.45,208.36,0.59]
[1756879514426,7.95,208.48,208.36,0.59]
[1756879514628,67.1358,208.52,208.36,0.59]
[1756879514822,67.1402,208.5,208.36,0.59]
[1756879515023,4.3196,208.33,208.29,0.83535371]
[1756879515221,67.1881,208.35,208.2,6.83389324]
[1756879515430,7.95,208.39,208.29,0.86843273]
[1756879515730,67.1701,208.41,208.27,6.83389324]
[1756879515731,0.0318029,208.3,208.27,6.83389324]
[1756879515925,7.95,208.43,208.29,0.83538378]
[1756879516132,7.95,208.43,208.32,0.03682885]
[1756879516431,4.3174,208.44,208.32,0.03682885]
[1756879516727,4.3174,208.44,208.29,5.15558378]
[1756879516929,12.2666,208.48,208.33,4.3194]
[1756879517234,12.2666,208.48,208.34,0.03368458]
[1756879517432,12.2666,208.48,208.33,4.3194]
[1756879517628,12.2666,208.48,208.39,0.03099289]
[1756879517834,7.95,208.48,208.39,0.03099289]
[1756879518332,7.95,208.53,208.39,150.23099289]
[1756879518737,7.95,208.53,208.37,6.83389324]
[1756879518927,7.95,208.53,208.44,0.03024236]
[1756879519325,7.95,208.45,208.29,0.88538378]
[1756879520328,7.95,208.45,208.29,0.83538378]
[1756879520533,7.95,208.45,208.24,0.05]
[1756879520838,7.95,208.45,208.26,0.83549409]
[1756879521629,7.95,208.4,208.26,0.83549409]
[1756879522026,7.95,208.4,208.27,0.05]
[1756879522427,7.95,208.4,208.26,0.83549409]
[1756879523938,7.95,208.4,208.27,0.05]
[1756879524530,0.03063765,208.36,208.31,0.03242626]
[1756879525939,7.95,208.35,208.31,0.03242626]
[1756879526938,7.95,208.35,208.11,0.88]
[1756879527244,7.95,208.29,208.11,0.88]
[1756879528041,0.0332138,208.22,208.11,0.88]
[1756879530242,0.0332138,208.22,208.12,0.83610634]
[1756879530740,0.0332138,208.22,208.16,7.71389324]
[1756879532840,0.0332138,208.22,208.16,0.88]
[1756879533036,0.0332138,208.22,208.12,7.66999958]
[1756879534737,15.43,208.21,208.0,4.01102551]
[1756879534940,7.95,208.21,208.03,6.83389324]
[1756879535139,7.95,208.21,208.03,8.55389324]
[1756879535341,0.03350762,208.14,208.03,8.55389324]
[1756879535538,0.03350762,208.14,208.04,1.72]
[1756879535736,0.03350762,208.14,208.09,6.83389324]
[1756879535935,0.03350762,208.14,208.1,1.72]
[1756879536135,0.03350762,208.14,208.09,6.83389324]
[1756879536338,0.03350762,208.14,208.1,1.72]
[1756879536743,0.03350762,208.14,208.09,6.83389324]
[1756879536944,0.03350762,208.14,208.1,0.48]
[1756879537146,0.03350762,208.14,208.12,1.72]
[1756879537344,0.03350762,208.14,208.11,153.94]
[1756879537345,0.03350762,208.14,208.13,1.72]
[1756879537645,7.95,208.24,208.13,1.72]
[1756879537841,7.95,208.24,208.14,6.83389324]
[1756879538443,7.95,208.37,208.15,1.72]
[1756879538648,7.95,208.35,208.19,6.83389324]
[1756879539343,7.95,208.35,208.19,8.55389324]
[1756879541840,7.95,208.35,208.24,8.54389324]
[1756879542147,7.95,208.35,208.24,161.28389324]
[1756879542538,7.17,208.48,208.27,0.0313799]
[1756879542852,7.17,208.39,208.28,1.71]
[1756879543444,0.48,208.38,208.17,1.71]
[1756879543647,10.6507892,208.37,208.12,0.83601595]
[1756879543840,7.17,208.35,208.12,8.13601595]
[1756879544047,7.17,208.33,208.12,8.13601595]
[1756879544348,3.4807892,208.32,208.12,61.79601595]
[1756879544549,7.17,208.3,208.12,61.79601595]
[1756879544748,3.4807892,208.29,208.12,0.83601595]
[1756879544949,6.83389324,208.34,208.12,0.83601595]
[1756879544950,7.17,208.27,208.13,151.94]
[1756879545151,7.17,208.25,208.13,151.94]
[1756879545350,3.4807892,208.24,208.13,151.94]
[1756879546247,7.17,208.25,208.13,151.94]
[1756879550156,7.17,208.25,208.14,1.71]
[1756879551555,10.0,208.22,208.14,1.71]
[1756879554056,10.0,208.22,208.15,6.83389324]
[1756879554360,10.0,208.22,208.17,1.71]
[1756879554559,10.0,208.22,208.18,149.46]
[1756879554761,7.17,208.31,208.18,149.46]
[1756879554762,7.17,208.31,208.2,6.83389324]
[1756879554955,7.17,208.41,208.2,370.00729324]
[1756879555151,6.83389324,208.42,208.2,370.00729324]
[1756879555352,7.17,208.46,208.23,4.3215]
[1756879556858,6.83389324,208.47,208.25,11.15499324]
[1756879557063,7.17,208.46,208.26,148.92]
[1756879557262,6.83389324,208.47,208.26,148.92]
[1756879557662,7.17,208.46,208.27,148.7]
[1756879557859,6.83389324,208.47,208.27,148.7]
[1756879558057,7.17,208.46,208.27,148.7]
[1756879558562,6.83389324,208.47,208.27,148.7]
[1756879558864,7.17,208.46,208.27,148.7]
[1756879559459,6.83389324,208.47,208.27,148.7]
[1756879559661,7.17,208.46,208.27,148.7]
[1756879559864,6.83389324,208.47,208.27,153.0207]
[1756879560064,7.17,208.48,208.27,153.0207]
[1756879560362,7.17,208.49,208.29,6.83389324]
[1756879560760,5.30660941,208.54,208.3,138.64]
[1756879560955,160.10050265,208.55,208.3,138.64]
[1756879561168,7.17,208.52,208.3,138.64]
[1756879561459,7.17,208.52,208.32,4.3197]
[1756879561665,5.30660941,208.56,208.32,67.1966]
[1756879561969,7.17,208.51,208.33,147.66]
[1756879562167,7.17,208.52,208.33,147.66]
[1756879562462,33.67050265,208.52,208.25,6.83389324]
[1756879562662,5.30660941,208.49,208.26,13.56]
[1756879562865,6.83389324,208.47,208.26,13.56]
[1756879563462,154.19389324,208.47,208.26,13.56]
[1756879563862,159.50050265,208.47,208.26,13.56]
[1756879564068,7.17,208.46,208.26,13.56]
[1756879564370,159.50050265,208.47,208.26,13.56]
[1756879564762,7.17,208.46,208.21,11.15579324]
[1756879564963,159.50050265,208.47,208.27,63.52]
[1756879565368,7.17,208.46,208.27,63.52]
[1756879565765,154.19389324,208.47,208.27,63.52]
[1756879566965,7.17,208.46,208.27,63.52]
[1756879567166,154.19389324,208.47,208.27,63.52]
[1756879567469,4.3025835,208.43,208.27,63.52]
[1756879567763,7.17,208.42,208.27,63.52]
[1756879567964,4.3025835,208.43,208.27,63.52]
[1756879568469,7.17,208.42,208.24,8.6238835]
[1756879568669,4.3025835,208.43,208.25,146.2]
[1756879568870,7.17,208.42,208.25,146.2]
[1756879569970,7.17,208.42,208.26,145.98]
[1756879570571,7.17,208.42,208.24,8.6238835]
[1756879570765,7.17,208.42,208.26,145.78]
[1756879571271,7.17,208.42,208.24,4.3025835]
[1756879571469,7.17,208.42,208.25,145.5]
[1756879572776,7.17,208.42,208.25,149.8211]
[1756879573268,7.17,208.42,208.25,145.5]
[1756879573470,7.17,208.42,208.27,4.3208]
[1756879573665,7.17,208.42,208.28,4.3025835]
[1756879575472,7.17,208.42,208.29,4.3204]
[1756879576267,7.17,208.42,208.28,4.3025835]
[1756879576775,7.17,208.42,208.3,4.3201]
[1756879577671,7.17,208.42,208.24,4.3212]
[1756879577977,7.17,208.42,208.26,4.3025835]
[1756879578275,7.17,208.42,208.26,8.6234835]
[1756879579172,7.17,208.42,208.28,4.3205]
[1756879580375,7.17,208.42,208.3,4.3201]
[1756879581373,7.17,208.42,208.3,8.6226835]
[1756879581766,7.17,208.42,208.23,67.2253]
[1756879581767,7.17,208.42,208.23,4.01111297]
[1756879582074,7.25,208.45,208.25,4.3025835]
[1756879583773,7.25,208.45,208.2,4.01111297]
[1756879583774,4.3025835,208.42,208.2,4.01111297]
[1756879583972,4.3025835,208.42,208.19,295.84]
[1756879584178,4.3025835,208.42,208.2,142.76]
[1756879585170,7.25,208.41,208.2,142.76]
[1756879585675,4.3025835,208.42,208.21,142.5]
[1756879585676,7.25,208.37,208.21,142.5]
[1756879585877,7.25,208.33,208.18,142.44]
[1756879586274,7.25,208.33,208.13,4.3025835]
[1756879586474,7.25,208.33,208.14,142.32]
[1756879586670,7.25,208.33,208.15,4.3025835]
[1756879587467,7.25,208.33,208.14,142.14]
[1756879587673,4.3025835,208.34,208.14,142.14]
[1756879587870,5.30660941,208.36,208.14,142.14]
[1756879588071,4.3025835,208.34,208.14,142.14]
[1756879588276,4.3025835,208.3,208.09,4.3025835]
[1756879588579,4.3025835,208.3,208.1,69.91607621]
[1756879588771,7.25,208.29,208.1,69.91607621]
[1756879588976,0.03608647,208.22,208.1,69.91607621]
[1756879589681,0.03608647,208.22,208.14,0.03171042]
[1756879590787,7.25,208.21,208.14,0.03171042]
[1756879593279,7.25,208.21,208.05,4.3025835]
[1756879593479,7.25,208.21,208.06,0.04]
[1756879593680,7.25,208.21,208.09,4.3025835]
[1756879593984,7.25,208.21,208.1,0.04]
[1756879594484,0.03073464,208.18,208.1,0.04]
[1756879594883,0.03073464,208.18,208.11,104.66]
[1756879598086,0.03073464,208.18,208.12,0.04]
[1756879600088,0.03073464,208.18,208.13,139.98]
[1756879600089,7.25,208.17,208.13,139.98]
[1756879600491,7.25,208.17,208.05,0.04]
[1756879601090,0.03140511,208.13,208.05,0.04]
[1756879602186,7.78,208.12,208.0,0.83647814]
[1756879602387,7.78,208.12,207.96,8.27]
[1756879602786,0.03098357,208.06,207.96,8.27]
[1756879603187,0.03098357,208.06,208.03,4.3025835]
[1756879603492,0.03098357,208.06,208.05,0.05]
[1756879603693,0.03098357,208.06,208.05,0.53]
[1756879605192,7.78,208.22,208.05,0.48]
[1756879605393,7.78,208.22,208.07,4.3025835]
[1756879606394,7.78,208.22,208.08,90.22]
[1756879606595,7.78,208.22,208.11,4.3025835]
[1756879607190,7.78,208.22,208.08,90.22]
[1756879607391,7.78,208.34,208.14,4.3025835]
[1756879607896,7.78,208.34,208.18,4.3025835]
[1756879610691,7.78,208.36,208.17,92.5]
[1756879610892,7.78,208.36,208.2,4.3025835]
[1756879611496,7.78,208.36,208.21,4.3025835]
[1756879612197,7.78,208.36,208.17,92.5]
[1756879612388,7.78,208.36,208.24,4.3025835]
[1756879614801,0.03594614,208.32,208.24,4.3025835]
[1756879615098,0.03594614,208.32,208.28,0.03171265]
[1756879616096,7.78,208.31,208.28,0.03171265]
[1756879617901,0.03594614,208.32,208.28,0.03171265]
[1756879620603,9.60919291,208.49,208.3,4.3025835]
[1756879620801,7.78,208.48,208.3,4.3025835]
[1756879621902,7.78,208.48,208.26,136.74]
[1756879622104,7.78,208.48,208.37,0.03432319]
[1756879629310,6.84329033,208.45,208.26,0.05]
[1756879629516,7.78,208.44,208.26,0.05]
[1756879631118,5.30660941,208.43,208.19,0.05]
[1756879631317,22.2,208.44,208.19,0.05]
[1756879631318,7.78,208.41,208.19,0.05]
[1756879631815,122.06,208.4,208.19,0.05]
[1756879632019,7.89,208.39,208.19,0.05]
[1756879632916,7.89,208.39,208.14,6.84329033]
[1756879633117,7.89,208.34,208.15,0.05]